bitfinex-derivatives/quotes_ETHF0:USTF0_20260119
["timestamp","ask_amount","ask_price","bid_price","bid_amount"]
[1768858843408,0.89126389,3215.4,3214.6,0.15563]
[1768858843616,0.89126389,3215.3,3214.6,0.15563]
[1768858843912,0.00399349,3215.6,3214.6,0.15563]
[1768858844116,0.89125272,3215.5,3214.6,0.15563]
[1768858844316,0.89125272,3215.4,3214.6,0.15563]
[1768858844612,0.89125272,3215.3,3214.6,0.15563]
[1768858844813,0.00399349,3215.6,3214.6,0.15563]
[1768858845016,0.89125399,3215.5,3214.6,0.15563]
[1768858845217,0.89125399,3215.4,3214.6,0.15563]
[1768858845407,0.89125399,3215.3,3214.6,0.15563]
[1768858845701,0.00399349,3215.6,3214.6,0.15563]
[1768858846002,0.891235,3215.5,3214.6,0.15563]
[1768858846201,0.891235,3215.4,3214.6,0.15563]
[1768858846410,0.891235,3215.3,3214.6,0.15563]
[1768858846612,0.00399349,3215.6,3214.6,0.15563]
[1768858846910,0.89120067,3215.5,3214.6,0.15563]
[1768858847112,0.89120067,3215.4,3214.6,0.15563]
[1768858847312,0.89120067,3215.3,3214.6,0.15563]
[1768858847501,0.00399349,3215.6,3214.6,0.15563]
[1768858847705,0.89116154,3215.5,3214.6,0.15563]
[1768858847912,0.89116154,3215.4,3214.6,0.15563]
[1768858848212,0.89116154,3215.3,3214.6,0.15563]
[1768858848402,0.89116154,3215.3,3214.4,40.8]
[1768858848403,0.00399349,3215.6,3214.8,0.15562]
[1768858849520,0.00399349,3215.6,3214.9,0.15562]
[1768858851912,1.1175022,3216.2,3215.2,0.15561]
[1768858852118,0.89049396,3216.1,3215.2,0.15561]
[1768858852415,0.89049396,3216.0,3215.2,0.15561]
[1768858852609,1.1175022,3216.4,3215.3,0.1556]
[1768858852816,0.89024589,3216.3,3215.3,0.1556]
[1768858853021,0.89024589,3216.2,3215.3,0.1556]
[1768858853222,0.00220666,3216.3,3215.3,0.1556]
[1768858857318,0.00220666,3216.3,3215.3,3.54972501]
[1768858865225,0.00220666,3216.3,3215.3,0.1556]
[1768858865424,3.45309329,3216.3,3214.8,0.15563]
[1768858865620,3.45309329,3216.3,3214.9,0.15562]
[1768858867032,3.45309329,3216.3,3215.0,0.15562]
[1768858867414,0.00220666,3216.3,3215.0,3.54974501]
[1768858869329,0.00220666,3216.3,3215.1,3.54973501]
[1768858873922,0.00220666,3216.3,3215.2,0.15561]
[1768858878040,0.00220666,3216.3,3215.2,3.54973501]
[1768858878226,0.89008602,3216.2,3215.2,3.54973501]
[1768858878534,0.00220666,3216.3,3215.2,3.54973501]
[1768858878732,0.89008544,3216.2,3215.2,3.54973501]
[1768858878933,0.00220666,3216.3,3215.2,3.54973501]
[1768858879136,0.89008471,3216.2,3215.2,3.54973501]
[1768858879334,0.00220666,3216.3,3215.2,3.54973501]
[1768858879531,0.89032882,3216.2,3215.2,3.54973501]
[1768858879725,0.00220666,3216.3,3215.2,3.54973501]
[1768858879925,0.89033923,3216.2,3215.2,3.54973501]
[1768858880125,0.00220666,3216.3,3215.2,3.54973501]
[1768858880325,0.89036272,3216.2,3215.2,3.54973501]
[1768858880526,0.00220666,3216.3,3215.2,3.54973501]
[1768858880829,0.89057063,3216.2,3215.2,3.54973501]
[1768858881027,0.00220666,3216.3,3215.2,3.54973501]
[1768858881222,0.89056963,3216.2,3215.2,3.54973501]
[1768858881532,0.89056963,3216.1,3215.2,3.54973501]
[1768858881834,0.00220666,3216.3,3215.2,3.54973501]
[1768858882129,0.89091193,3216.2,3215.2,3.54973501]
[1768858882335,0.00220666,3216.3,3215.3,3.54972501]
[1768858882531,0.89116926,3216.2,3215.3,3.54972501]
[1768858882735,0.00220666,3216.3,3215.3,3.54972501]
[1768858882928,0.89116911,3216.2,3215.3,3.54972501]
[1768858883129,0.00220666,3216.3,3215.3,3.54972501]
[1768858883328,0.89116438,3216.2,3215.3,3.54972501]
[1768858883528,0.00220666,3216.3,3215.4,3.61543958]
[1768858883729,0.89116368,3216.2,3215.4,3.61543958]
[1768858883927,0.00220666,3216.3,3215.4,3.61543958]
[1768858884130,0.89116368,3216.2,3215.5,3.61542958]
[1768858884435,0.00220666,3216.3,3215.5,3.61542958]
[1768858885028,0.00220666,3216.3,3215.5,4.90566587]
[1768858885427,0.00220666,3216.3,3215.6,0.15559]
[1768858885627,0.00220666,3216.3,3215.7,1.29023629]
[1768858886236,1.1175022,3216.8,3215.7,1.29023629]
[1768858887230,1.12118308,3216.8,3215.7,1.29023629]
[1768858887541,0.89098565,3216.7,3215.7,1.29023629]
[1768858887732,0.89098565,3216.6,3215.7,1.29023629]
[1768858887931,0.89098565,3216.5,3215.7,1.29023629]
[1768858888124,0.89098565,3216.4,3215.7,1.29023629]
[1768858888328,1.12118308,3216.8,3215.7,1.29023629]
[1768858888529,0.89066714,3216.7,3215.7,1.29023629]
[1768858888738,0.89066714,3216.6,3215.7,1.29023629]
[1768858888932,0.89066714,3216.5,3215.7,4.90565587]
[1768858889236,0.00368088,3216.8,3215.7,4.90565587]
[1768858889439,0.89059611,3216.7,3215.7,4.90565587]
[1768858889624,0.89059611,3216.6,3215.7,4.90565587]
[1768858889829,0.89059611,3216.5,3215.7,4.90565587]
[1768858890025,0.00368088,3216.8,3215.7,4.90565587]
[1768858890240,0.89061596,3216.7,3215.7,4.90565587]
[1768858890436,0.89061596,3216.6,3215.7,4.90565587]
[1768858890637,0.89061596,3216.5,3215.7,4.90565587]
[1768858890836,0.00368088,3216.8,3215.7,4.90565587]
[1768858891031,0.89053234,3216.7,3215.7,4.90565587]
[1768858891233,0.89053234,3216.6,3215.7,4.90565587]
[1768858891433,0.00368088,3216.8,3215.7,4.90565587]
[1768858891734,0.89043968,3216.7,3215.8,3.61541958]
[1768858891937,0.89043968,3216.6,3215.8,3.61541958]
[1768858892139,0.00368088,3216.8,3215.8,3.61541958]
[1768858892337,0.89034085,3216.7,3215.8,3.61541958]
[1768858892535,0.89034085,3216.6,3215.8,3.61541958]
[1768858892739,0.00368088,3216.8,3215.8,3.61541958]
[1768858892936,0.89023432,3216.7,3215.8,3.61541958]
[1768858893237,0.89023432,3216.6,3215.8,3.61541958]
[1768858893436,0.00368088,3216.8,3215.8,3.61541958]
[1768858893636,0.89014227,3216.7,3215.8,3.61541958]
[1768858893836,0.89014227,3216.6,3215.8,3.61541958]
[1768858894049,0.00368088,3216.8,3215.8,3.61541958]
[1768858894246,0.89014227,3216.7,3215.8,3.61541958]
[1768858894435,0.89014227,3216.6,3215.8,3.61541958]
[1768858894635,0.00368088,3216.8,3215.8,3.61541958]
[1768858894937,0.89005404,3216.7,3215.8,3.61541958]
[1768858895136,0.00368088,3216.8,3215.8,3.61541958]
[1768858895337,0.88996374,3216.7,3215.8,3.61541958]
[1768858895645,0.00368088,3216.8,3215.8,3.61541958]
[1768858895845,0.88996372,3216.7,3215.8,3.61541958]
[1768858896146,0.00368088,3216.8,3215.8,3.61541958]
[1768858896350,0.8899273,3216.7,3215.8,3.61541958]
[1768858896541,0.00368088,3216.8,3215.8,3.61541958]
[1768858896845,0.8899273,3216.7,3215.8,3.61541958]
[1768858897045,0.00368088,3216.8,3215.8,3.61541958]
[1768858897347,0.88992787,3216.7,3215.8,3.61541958]
[1768858897645,0.00368088,3216.8,3215.8,3.61541958]
[1768858897846,0.88989742,3216.7,3215.8,3.61541958]
[1768858898041,0.00368088,3216.8,3215.8,3.61541958]
[1768858906468,0.88982157,3216.7,3215.8,3.61541958]
[1768858906664,0.00368088,3216.8,3215.8,3.61541958]
[1768858906866,0.88982092,3216.7,3215.8,3.61541958]
[1768858907065,0.00368088,3216.8,3215.8,3.61541958]
[1768858907266,0.88982021,3216.7,3215.8,3.61541958]
[1768858907465,0.00368088,3216.8,3215.8,3.61541958]
[1768858907666,0.88987617,3216.7,3215.8,3.61541958]
[1768858907866,0.00368088,3216.8,3215.8,3.61541958]
[1768858908167,0.88987639,3216.7,3215.8,3.61541958]
[1768858908368,0.00368088,3216.8,3215.8,3.61541958]
[1768858908568,2.18018281,3216.7,3215.8,3.61541958]
[1768858908872,1.29023629,3216.5,3215.8,3.61541958]
[1768858909070,1.29023629,3216.7,3215.8,3.61541958]
[1768858909972,0.00368088,3216.8,3215.8,3.61541958]
[1768858910174,2.18027116,3216.7,3215.8,3.61541958]
[1768858910375,1.29023629,3216.7,3215.8,3.61541958]
[1768858914172,1.29023629,3216.7,3215.8,314.61541958]
[1768858914476,0.89067759,3216.6,3215.8,314.61541958]
[1768858914676,1.29023629,3216.7,3215.8,314.61541958]
[1768858914872,0.89067759,3216.6,3215.8,314.61541958]
[1768858915071,1.29023629,3216.7,3215.8,314.61541958]
[1768858915271,0.89067702,3216.6,3215.8,314.61541958]
[1768858915574,1.29023629,3216.7,3215.8,314.61541958]
[1768858915870,0.89076819,3216.6,3215.8,314.61541958]
[1768858916071,1.29023629,3216.7,3215.8,314.61541958]
[1768858916270,0.89076876,3216.6,3215.8,314.61541958]
[1768858916472,1.29023629,3216.7,3215.8,314.61541958]
[1768858916771,0.89083152,3216.6,3215.8,314.61541958]
[1768858916971,1.29023629,3216.7,3215.8,314.61541958]
[1768858917172,0.89083089,3216.6,3215.8,314.61541958]
[1768858917377,1.29023629,3216.7,3215.8,314.61541958]
[1768858917566,0.89089174,3216.6,3215.8,314.61541958]
[1768858917765,1.29023629,3216.7,3215.8,314.61541958]
[1768858917961,0.89089174,3216.6,3215.8,314.61541958]
[1768858918162,1.29023629,3216.7,3215.8,314.61541958]
[1768858918362,0.89073919,3216.6,3215.8,314.61541958]
[1768858918574,1.29023629,3216.7,3215.8,314.61541958]
[1768858918768,0.89073919,3216.6,3215.9,4.304]
[1768858918974,1.29023629,3216.7,3215.9,4.304]
[1768858919170,0.89074035,3216.6,3215.9,4.304]
[1768858919373,1.29023629,3216.7,3215.9,4.304]
[1768858919575,0.89082443,3216.6,3215.9,4.304]
[1768858919774,1.29023629,3216.7,3215.9,4.304]
[1768858920074,0.89082442,3216.6,3215.9,4.304]
[1768858920269,0.00368088,3216.8,3215.8,311.0]
[1768858920270,1.29023629,3216.3,3215.8,311.0]
[1768858920471,1.29023629,3216.1,3215.8,297.1959313]
[1768858920875,1.29023629,3216.3,3215.8,297.1959313]
[1768858927481,1.29023629,3216.5,3215.8,297.1959313]
[1768858927682,0.89010104,3216.4,3215.8,297.1959313]
[1768858927882,1.29023629,3216.5,3215.8,297.1959313]
[1768858928084,0.89010158,3216.4,3215.8,297.1959313]
[1768858928287,1.29023629,3216.5,3215.8,297.1959313]
[1768858928584,0.89005814,3216.4,3215.8,297.1959313]
[1768858928878,1.29023629,3216.5,3215.8,297.1959313]
[1768858929083,0.89004805,3216.4,3215.8,297.1959313]
[1768858929284,1.29023629,3216.7,3215.8,297.1959313]
[1768858929482,0.8900259,3216.6,3215.8,297.1959313]
[1768858929682,0.8900259,3216.5,3215.8,297.1959313]
[1768858929883,1.29023629,3216.7,3215.8,297.1959313]
[1768858930182,0.89001967,3216.6,3215.8,297.1959313]
[1768858930383,0.89001967,3216.5,3215.8,297.1959313]
[1768858930584,0.00368088,3216.8,3215.8,297.1959313]
[1768858930776,0.89001205,3216.7,3215.8,300.46115316]
[1768858930978,0.89001205,3216.6,3215.8,300.46115316]
[1768858931178,0.89001205,3216.5,3215.8,300.46115316]
[1768858931471,0.00368088,3216.8,3215.8,300.46115316]
[1768858931671,0.89001047,3216.7,3215.8,300.46115316]
[1768858931880,0.89001047,3216.6,3215.8,300.46115316]
[1768858932080,0.89001047,3216.5,3215.8,300.46115316]
[1768858932286,0.00368088,3216.8,3215.8,300.46115316]
[1768858932478,0.8900115,3216.7,3215.8,300.46115316]
[1768858932678,0.8900115,3216.6,3215.8,300.46115316]
[1768858932885,0.8900115,3216.5,3215.8,300.46115316]
[1768858933085,0.00368088,3216.8,3215.8,300.46115316]
[1768858933285,0.89001547,3216.7,3215.8,300.46115316]
[1768858933475,0.89001547,3216.6,3215.8,300.46115316]
[1768858933677,0.89001547,3216.5,3215.8,300.46115316]
[1768858933978,0.00368088,3216.8,3215.8,300.46115316]
[1768858934177,0.89001199,3216.7,3215.8,300.46115316]
[1768858934384,0.89001199,3216.6,3215.8,300.46115316]
[1768858934584,0.89001199,3216.5,3215.8,300.46115316]
[1768858934786,0.00368088,3216.8,3215.8,300.46115316]
[1768858934979,0.89001709,3216.7,3215.8,300.46115316]
[1768858935179,0.89001709,3216.6,3215.8,300.46115316]
[1768858935378,0.89001709,3216.5,3215.8,300.46115316]
[1768858935582,0.00368088,3216.8,3215.8,300.46115316]
[1768858935779,0.89002024,3216.7,3215.8,300.46115316]
[1768858935986,0.89002024,3216.6,3215.8,300.46115316]
[1768858936288,0.89002024,3216.5,3215.8,300.46115316]
[1768858936488,1.12118308,3216.8,3215.8,300.46115316]
[1768858936789,0.89003116,3216.7,3215.8,300.46115316]
[1768858936988,0.89003116,3216.6,3215.8,300.46115316]
[1768858937290,0.89003116,3216.5,3215.8,300.46115316]
[1768858937485,1.12118308,3216.8,3215.8,300.46115316]
[1768858937784,0.88993477,3216.7,3215.8,300.46115316]
[1768858937980,0.88993477,3216.6,3215.8,300.46115316]
[1768858938181,0.88993477,3216.5,3215.8,300.46115316]
[1768858938480,1.12118308,3216.8,3215.8,300.46115316]
[1768858938681,0.88981296,3216.7,3215.8,300.46115316]
[1768858938978,0.88981296,3216.6,3215.8,300.46115316]
[1768858939181,0.88981296,3216.5,3215.8,300.46115316]
[1768858939379,1.12118308,3216.8,3215.8,300.46115316]
[1768858939580,0.88983635,3216.7,3215.8,300.46115316]
[1768858939785,0.88983635,3216.6,3215.8,300.46115316]
[1768858939986,0.88983635,3216.5,3215.8,300.46115316]
[1768858940176,0.88985591,3216.4,3215.8,300.46115316]
[1768858940378,1.12118308,3216.8,3215.8,300.46115316]
[1768858940592,0.88987952,3216.7,3215.8,300.46115316]
[1768858940781,0.88987952,3216.6,3215.8,300.46115316]
[1768858941075,0.88987952,3216.5,3215.8,300.46115316]
[1768858941280,0.88987952,3216.4,3215.8,300.46115316]
[1768858941482,1.12118308,3216.8,3215.8,300.46115316]
[1768858941684,0.8899153,3216.7,3215.8,300.46115316]
[1768858941883,0.8899153,3216.6,3215.8,300.46115316]
[1768858942093,0.8899153,3216.5,3215.8,300.46115316]
[1768858942393,0.8899153,3216.4,3215.8,300.46115316]
[1768858942592,1.12118308,3216.8,3215.8,300.46115316]
[1768858942793,0.88995299,3216.7,3215.8,300.46115316]
[1768858942988,0.88995299,3216.6,3215.8,300.46115316]
[1768858943287,0.88995299,3216.5,3215.8,300.46115316]
[1768858943488,0.88995299,3216.4,3215.8,300.46115316]
[1768858943693,1.12118308,3216.8,3215.8,300.46115316]
[1768858943991,0.89000291,3216.7,3215.8,300.46115316]
[1768858944195,0.89000291,3216.6,3215.8,300.46115316]
[1768858944390,0.89000291,3216.5,3215.8,300.46115316]
[1768858944591,0.89000291,3216.4,3215.8,300.46115316]
[1768858944792,1.12118308,3216.8,3215.8,300.46115316]
[1768858945007,0.89004626,3216.7,3215.8,300.46115316]
[1768858945297,0.89004626,3216.6,3215.8,300.46115316]
[1768858945497,0.89004626,3216.5,3215.8,300.46115316]
[1768858945695,0.89004626,3216.4,3215.8,300.46115316]
[1768858945892,1.12118308,3216.8,3215.8,300.46115316]
[1768858946086,0.89012429,3216.7,3215.8,300.46115316]
[1768858946290,0.89012429,3216.6,3215.8,300.46115316]
[1768858946495,0.89012429,3216.5,3215.8,300.46115316]
[1768858946697,0.89012429,3216.4,3215.8,300.46115316]
[1768858946897,1.12118308,3216.8,3215.8,300.46115316]
[1768858947196,0.89020034,3216.7,3215.8,300.46115316]
[1768858947402,0.89020034,3216.6,3215.8,300.46115316]
[1768858947590,0.89020034,3216.5,3215.8,300.46115316]
[1768858947791,0.89020034,3216.4,3215.8,300.46115316]
[1768858948086,1.12118308,3216.8,3215.8,300.46115316]
[1768858948289,0.89258212,3216.7,3215.8,300.46115316]
[1768858948496,0.89258212,3216.6,3215.8,300.46115316]
[1768858948691,0.89258212,3216.5,3215.8,300.46115316]
[1768858948887,0.89258212,3216.4,3215.8,300.46115316]
[1768858949098,1.12118308,3216.8,3215.8,300.46115316]
[1768858949300,2.01056793,3216.7,3215.8,300.46115316]
[1768858954912,2.01056793,3216.7,3215.9,4.39]
[1768858964025,1.1175022,3216.7,3215.9,4.39]
[1768858965218,2.01056793,3216.7,3215.9,4.39]
[1768858966228,2.01056793,3216.7,3215.8,304.87815316]
[1768858984143,1.1175022,3216.7,3215.8,304.87815316]
[1768858985541,2.01056793,3216.7,3215.8,304.87815316]
[1768858986337,1.1175022,3216.7,3215.8,304.87815316]
[1768858988546,2.01056793,3216.7,3215.8,304.87815316]
[1768858988747,1.1175022,3216.7,3215.8,304.87815316]
[1768858991049,1.1175022,3216.7,3215.9,3.53191385]
[1768858996457,1.1175022,3216.7,3216.3,0.04044774]
[1768858996851,1.1175022,3216.7,3216.5,0.08093453]
[1768858997153,1.1175022,3216.7,3215.9,3.53191385]
[1768858997354,2.01056793,3216.7,3215.9,3.53191385]
[1768859004259,0.89331754,3216.6,3215.9,3.53191385]
[1768859004561,0.89331754,3216.5,3215.9,3.53191385]
[1768859004855,0.89331754,3216.4,3215.9,3.53191385]
[1768859005154,0.89331754,3216.3,3215.9,3.53191385]
[1768859005348,1.1175022,3216.7,3215.9,3.53191385]
[1768859005549,2.01103339,3216.7,3215.9,3.53191385]
[1768859009050,0.89353119,3216.6,3215.9,3.53191385]
[1768859009246,1.1175022,3216.7,3215.9,3.53191385]
[1768859009247,0.89353119,3216.5,3215.9,3.53191385]
[1768859009451,0.89353119,3216.4,3215.9,3.53191385]
[1768859009660,0.89353119,3216.3,3215.9,3.53191385]
[1768859009850,1.1175022,3216.7,3215.9,3.53191385]
[1768859010053,2.01169642,3216.7,3215.9,3.53191385]
[1768859016675,0.00368088,3216.8,3216.1,3.26106429]
[1768859016971,1.67735749,3216.9,3216.1,3.26106429]
[1768859017374,3.48935749,3217.0,3216.1,3.26106429]
[1768859017793,3.48935749,3217.0,3216.1,7.79806429]
[1768859017986,1.81500994,3217.0,3216.1,7.79806429]
[1768859018491,1.81500994,3217.0,3216.2,3.26106429]
[1768859019501,0.00300994,3217.0,3216.2,3.26106429]
[1768859028697,0.88440451,3216.9,3216.2,3.26106429]
[1768859028889,0.88440451,3216.8,3216.2,3.26106429]
[1768859029090,0.00300994,3217.0,3216.2,3.26106429]
[1768859029298,0.88437137,3216.9,3216.2,3.26106429]
[1768859029492,0.88437137,3216.8,3216.2,3.26106429]
[1768859029695,0.00300994,3217.0,3216.2,3.26106429]
[1768859029997,0.88436306,3216.9,3216.2,3.26106429]
[1768859030301,0.88436306,3216.8,3216.2,3.26106429]
[1768859030495,0.00300994,3217.0,3216.2,3.26106429]
[1768859030695,0.88433122,3216.9,3216.2,3.26106429]
[1768859030895,0.88433122,3216.8,3216.2,3.26106429]
[1768859031097,0.00300994,3217.0,3216.2,3.26106429]
[1768859031396,0.8843083,3216.9,3216.2,3.26106429]
[1768859031592,0.8843083,3216.8,3216.2,3.26106429]
[1768859031796,0.00300994,3217.0,3216.3,3.40880841]
[1768859036301,0.15548,3217.8,3216.3,3.40880841]
[1768859036603,0.30848134,3217.7,3216.6,4.86764794]
[1768859036804,1.29032043,3218.0,3216.6,4.86764794]
[1768859037003,0.30845734,3217.9,3216.6,4.86764794]
[1768859037201,0.30845734,3217.8,3216.6,4.86764794]
[1768859037404,0.00223151,3217.8,3216.6,4.86764794]
[1768859037701,0.00223151,3217.8,3216.7,3.57732751]
[1768859038702,0.00223151,3217.8,3216.8,1.29032043]
[1768859038902,0.00223151,3217.8,3216.8,4.86764794]
[1768859039408,0.00223151,3217.8,3216.8,3.57732751]
[1768859039595,1.67965557,3217.8,3216.8,3.57732751]
[1768859039801,0.00223151,3217.8,3216.8,3.57732751]
[1768859041307,1.67965557,3217.8,3216.8,3.57732751]
[1768859041509,0.00223151,3217.8,3216.8,3.57732751]
[1768859043717,0.87836982,3217.7,3216.8,3.57732751]
[1768859043898,0.87836982,3217.6,3216.8,3.57732751]
[1768859044208,0.87836982,3217.5,3216.8,3.57732751]
[1768859044408,0.87836982,3217.4,3216.8,3.57732751]
[1768859044610,0.00223151,3217.8,3216.8,3.57732751]
[1768859044811,0.87834257,3217.7,3216.8,3.57732751]
[1768859045010,0.87834257,3217.6,3216.8,3.57732751]
[1768859045212,0.87834257,3217.5,3216.8,3.57732751]
[1768859045399,0.87834257,3217.4,3216.8,3.57732751]
[1768859045598,0.00223151,3217.8,3216.8,3.57732751]
[1768859045802,0.87834167,3217.7,3216.8,3.57732751]
[1768859046009,0.87834167,3217.6,3216.8,3.57732751]
[1768859046209,0.87834167,3217.5,3216.8,3.57732751]
[1768859046405,0.00223151,3217.8,3217.0,4.86764794]
[1768859047014,1.29032043,3218.4,3217.2,1.29032043]
[1768859047015,1.67742406,3218.4,3217.2,1.29032043]
[1768859047312,2.96774449,3218.4,3217.2,1.29032043]
[1768859047706,2.96774449,3218.4,3217.0,3.57732751]
[1768859047909,2.9701488,3218.4,3217.1,3.57732751]
[1768859048915,1.29032043,3218.2,3217.1,3.57732751]
[1768859051112,1.29272474,3218.4,3217.1,3.57732751]
[1768859051508,0.00240431,3218.4,3217.1,3.57732751]
[1768859051709,1.29272474,3218.4,3217.1,3.57732751]
[1768859052013,1.29272474,3218.4,3217.2,1.29032043]
[1768859052208,0.00240431,3218.4,3217.2,4.86764794]
[1768859052915,1.29272474,3218.4,3217.2,3.57732751]
[1768859055619,1.29032043,3218.2,3217.2,3.57732751]
[1768859056622,1.29032043,3218.0,3217.2,3.57732751]
[1768859058115,1.29032043,3218.0,3216.7,3.57732751]
[1768859058310,1.29032043,3217.8,3216.8,3.57732751]
[1768859058808,1.29032043,3217.8,3216.9,44.37732751]
[1768859059415,1.29032043,3217.8,3216.9,3.57732751]
[1768859059615,1.29032043,3217.6,3216.3,3.57732751]
[1768859059816,1.29032043,3217.2,3216.3,3.57732751]
[1768859060319,1.29032043,3217.4,3216.3,3.57732751]
[1768859068822,1.29032043,3217.4,3216.4,40.8]
[1768859069019,1.11615164,3217.8,3216.4,40.8]
[1768859069320,1.98971546,3217.7,3216.4,40.8]
[1768859069514,0.87356382,3217.6,3216.4,40.8]
[1768859069714,0.87356382,3217.5,3216.4,40.8]
[1768859069916,0.87356382,3217.4,3216.4,40.8]
[1768859070111,0.87356382,3217.3,3216.4,40.8]
[1768859070307,1.11615164,3217.7,3216.4,40.8]
[1768859071223,1.11615164,3217.7,3216.4,44.27924649]
[1768859071423,0.87358814,3217.6,3216.4,44.27924649]
[1768859071622,0.87358814,3217.5,3216.4,44.27924649]
[1768859071822,0.87358814,3217.4,3216.4,44.27924649]
[1768859072124,1.11615164,3217.8,3216.4,44.27924649]
[1768859072325,1.98972076,3217.8,3216.4,44.27924649]
[1768859074927,1.98972076,3217.8,3216.5,3.47924649]
[1768859081333,1.98972076,3217.7,3216.5,3.47924649]
[1768859081534,0.87356912,3217.6,3216.5,3.47924649]
[1768859081829,0.87356912,3217.5,3216.5,3.47924649]
[1768859082020,0.87356912,3217.4,3216.5,3.47924649]
[1768859082216,1.11615164,3217.8,3216.5,3.47924649]
[1768859082435,1.99303695,3217.7,3216.5,3.47924649]
[1768859082638,0.87688531,3217.6,3216.5,3.47924649]
[1768859082932,0.87688531,3217.5,3216.5,3.47924649]
[1768859083133,0.87688531,3217.4,3216.5,3.47924649]
[1768859083326,0.87688531,3217.3,3216.5,3.47924649]
[1768859083528,1.11615164,3217.7,3216.5,3.47924649]
[1768859087338,1.99315491,3217.6,3216.5,3.47924649]
[1768859087536,0.87700327,3217.5,3216.5,3.47924649]
[1768859087731,0.87700327,3217.4,3216.5,3.47924649]
[1768859088034,0.87700327,3217.3,3216.5,3.47924649]
[1768859088238,1.11615164,3217.6,3216.5,300.67517779]
[1768859089337,1.99415196,3217.5,3216.5,300.67517779]
[1768859089639,0.87800032,3217.4,3216.5,300.67517779]
[1768859089832,0.87800032,3217.3,3216.5,300.67517779]
[1768859090034,0.87800032,3217.2,3216.5,300.67517779]
[1768859090233,0.87800032,3217.1,3216.5,300.67517779]
[1768859090430,1.11615164,3217.5,3216.5,300.67517779]
[1768859094734,1.11615164,3217.5,3216.5,305.30017779]
[1768859099144,1.11615164,3217.5,3216.5,305.31017779]
[1768859101047,1.11615164,3217.5,3216.5,297.1959313]
[1768859101437,1.99482458,3217.5,3216.5,297.1959313]
[1768859101640,0.87867294,3217.4,3216.5,297.1959313]
[1768859101947,0.87867294,3217.3,3216.5,297.1959313]
[1768859102148,0.87867294,3217.2,3216.5,297.1959313]
[1768859102347,0.87867294,3217.1,3216.5,297.1959313]
[1768859102547,1.11615164,3217.5,3216.5,297.1959313]
[1768859103548,1.99769519,3217.5,3216.5,297.1959313]
[1768859103751,0.88154355,3217.4,3216.5,297.1959313]
[1768859103947,1.11615164,3217.5,3216.5,297.1959313]
[1768859103948,0.88154355,3217.3,3216.5,297.1959313]
[1768859104147,0.88154355,3217.2,3216.5,297.1959313]
[1768859104346,0.88154355,3217.1,3216.5,297.1959313]
[1768859104549,1.11615164,3217.5,3216.5,297.1959313]
[1768859107649,0.88049454,3217.4,3216.5,297.1959313]
[1768859107853,0.88049454,3217.3,3216.5,297.1959313]
[1768859108151,0.88049454,3217.2,3216.5,297.1959313]
[1768859108450,1.11615164,3217.6,3216.5,297.1959313]
[1768859110157,1.11615164,3217.6,3216.6,4.659]
[1768859110354,1.11615164,3217.6,3216.5,284.87665503]
[1768859110355,1.11615164,3217.4,3216.5,284.87665503]
[1768859110555,1.11615164,3217.4,3216.5,284.87364509]
[1768859110755,1.99480339,3217.4,3216.5,284.87364509]
[1768859113272,1.99480339,3217.3,3216.5,284.87364509]
[1768859113469,0.87865175,3217.2,3216.5,284.87364509]
[1768859113770,0.87865175,3217.1,3216.5,284.87364509]
[1768859113965,0.87865175,3217.0,3216.5,284.87364509]
[1768859114171,1.11615164,3217.3,3216.5,284.87364509]
[1768859115171,1.11615164,3217.4,3216.5,284.87364509]
[1768859126591,1.99193214,3217.4,3216.5,284.87364509]
[1768859129587,1.824,3217.5,3216.6,3.41350757]
[1768859132198,1.824,3217.5,3216.5,289.58164509]
[1768859132199,3.11357918,3217.5,3216.5,289.58164509]
[1768859133795,1.824,3217.5,3216.5,289.58164509]
[1768859142101,3.50442406,3217.7,3216.5,293.06707535]
[1768859142398,1.18013917,3217.6,3216.5,293.06707535]
[1768859142599,0.8719229,3217.5,3216.5,293.06707535]
[1768859142800,0.8719229,3217.4,3216.5,293.06707535]
[1768859143001,0.8719229,3217.3,3216.5,293.06707535]
[1768859143201,0.8719229,3217.2,3216.5,293.06707535]
[1768859143402,0.8719229,3217.1,3216.5,293.06707535]
[1768859143604,3.50442406,3217.7,3216.5,293.06707535]
[1768859143801,1.18012488,3217.6,3216.5,293.06707535]
[1768859144001,0.87191439,3217.5,3216.5,293.06707535]
[1768859144301,0.87191439,3217.4,3216.5,293.06707535]
[1768859144503,0.87191439,3217.3,3216.5,293.06707535]
[1768859144702,0.87191439,3217.2,3216.5,293.06707535]
[1768859144904,0.87191439,3217.1,3216.5,293.06707535]
[1768859145097,3.50442406,3217.7,3216.5,293.06707535]
[1768859145298,1.18016646,3217.6,3216.5,293.06707535]
[1768859145502,0.87194663,3217.5,3216.5,293.06707535]
[1768859145698,0.87194663,3217.4,3216.5,293.06707535]
[1768859145904,0.87194663,3217.3,3216.5,293.06707535]
[1768859146204,0.87194663,3217.2,3216.5,293.06707535]
[1768859146404,0.87194663,3217.1,3216.5,293.06707535]
[1768859146612,3.50442406,3217.7,3216.5,293.06707535]
[1768859146795,1.18017204,3217.6,3216.5,293.06707535]
[1768859147109,1.28957918,3217.3,3216.5,289.58164509]
[1768859147293,0.87195063,3217.2,3216.5,289.58164509]
[1768859147492,0.87195063,3217.1,3216.5,289.58164509]
[1768859147703,1.28957918,3217.3,3216.5,289.58164509]
[1768859147904,0.87194743,3217.2,3216.5,289.58164509]
[1768859148208,0.87194743,3217.1,3216.5,289.58164509]
[1768859148397,1.28957918,3217.3,3216.5,289.58164509]
[1768859148601,0.87192018,3217.2,3216.5,289.58164509]
[1768859148796,0.87192018,3217.1,3216.5,289.58164509]
[1768859149096,1.28957918,3217.3,3216.5,289.58164509]
[1768859149305,0.87194043,3217.2,3216.5,289.58164509]
[1768859149507,0.87194043,3217.1,3216.5,289.58164509]
[1768859149692,1.28957918,3217.3,3216.5,289.58164509]
[1768859150003,0.87194036,3217.2,3216.5,289.58164509]
[1768859150193,0.87194036,3217.1,3216.5,289.58164509]
[1768859150395,1.28957918,3217.3,3216.5,289.58164509]
[1768859150696,0.87201345,3217.2,3216.5,289.58164509]
[1768859150893,0.87201345,3217.1,3216.5,289.58164509]
[1768859151099,1.28957918,3217.3,3216.5,289.58164509]
[1768859151303,0.87203588,3217.2,3216.5,289.58164509]
[1768859151498,0.87203588,3217.1,3216.5,289.58164509]
[1768859151693,1.28957918,3217.3,3216.5,289.58164509]
[1768859152005,0.87233177,3217.2,3216.5,289.58164509]
[1768859152306,0.87233177,3217.1,3216.5,289.58164509]
[1768859152513,1.28957918,3217.3,3216.5,289.58164509]
[1768859152705,0.87235716,3217.2,3216.5,289.58164509]
[1768859152906,0.87235716,3217.1,3216.5,289.58164509]
[1768859153112,1.28957918,3217.5,3216.5,289.58164509]
[1768859153309,0.87240023,3217.4,3216.5,289.58164509]
[1768859153605,0.87240023,3217.3,3216.5,289.58164509]
[1768859153807,0.87240023,3217.2,3216.5,289.58164509]
[1768859154104,0.87240023,3217.1,3216.5,289.58164509]
[1768859154307,1.28957918,3217.5,3216.5,289.58164509]